bitfinex/quotes_ETHUSD_20250324
["timestamp","ask_amount","ask_price","bid_price","bid_amount"]
[1742831312101,4.78655,2089.2,2088.9,7.631]
[1742831312489,4.78685,2089.1,2088.9,7.631]
[1742831312686,9.57381,2089.1,2088.9,7.631]
[1742831313020,4.78697,2089.0,2088.9,7.631]
[1742831313177,4.78697,2089.0,2088.9,4.631]
[1742831314320,4.78683,2089.1,2088.9,4.631]
[1742831315982,9.57376,2089.1,2088.9,4.631]
[1742831316203,4.78683,2089.1,2088.9,4.631]
[1742831316408,4.78697,2089.0,2088.9,4.631]
[1742831316628,5.61336,2089.0,2088.8,25.64742485]
[1742831316922,4.78716,2089.0,2088.9,4.631]
[1742831317103,9.57432,2089.0,2088.8,25.64742485]
[1742831317419,9.57432,2089.0,2088.9,4.631]
[1742831317726,4.78716,2089.0,2088.9,4.631]
[1742831321507,4.78656,2089.2,2088.9,4.631]
[1742831322190,4.78651,2089.3,2088.9,9.46598853]
[1742831322389,10.87614,2089.4,2089.0,9.57371]
[1742831322596,10.87614,2089.4,2089.1,5.30794]
[1742831323024,10.87614,2089.4,2089.0,4.78695]
[1742831323229,4.78614,2089.4,2089.0,4.78695]
[1742831323523,4.78637,2089.3,2089.0,4.78695]
[1742831323731,4.78653,2089.2,2088.9,9.93928]
[1742831324101,4.78637,2089.3,2088.9,14.72634]
[1742831324329,9.57288,2089.3,2088.9,9.93926]
[1742831324533,4.78675,2089.1,2089.0,4.631]
[1742831325489,4.78631,2089.3,2089.0,4.631]
[1742831325689,5.60368,2089.6,2089.1,3.04786519]
[1742831325930,4.78568,2089.6,2089.3,4.78626]
[1742831326087,0.818,2089.8,2089.4,9.41697]
[1742831326088,4.78519,2089.8,2089.4,9.41697]
[1742831326426,4.78519,2089.8,2089.4,9.46482484]
[1742831326794,4.78519,2089.8,2089.4,9.41697]
[1742831327594,4.78519,2089.8,2089.4,9.4648249]
[1742831327924,4.78541,2089.7,2089.4,9.41697]
[1742831328633,4.78519,2089.8,2089.4,9.41697]
[1742831328805,4.78495,2089.9,2089.4,4.99416757]
[1742831329132,4.78569,2089.6,2089.4,4.99416757]
[1742831329425,4.78583,2089.5,2089.4,0.36316757]
[1742831329626,4.78583,2089.5,2089.4,4.631]
[1742831332341,4.78562,2089.6,2089.4,4.631]
[1742831332528,4.78583,2089.5,2089.4,4.98395216]
[1742831333112,4.78606,2089.4,2089.3,25.3]
[1742831333311,4.78606,2089.4,2088.8,11.26279485]
[1742831333312,4.787,2089.0,2088.8,0.35542485]
[1742831333638,4.787,2089.0,2088.9,4.63]
[1742831335338,9.57325,2089.2,2088.9,4.63]
[1742831335510,4.78683,2089.1,2088.9,4.63]
[1742831336211,4.78697,2089.0,2088.9,4.63]
[1742831337046,4.78697,2089.0,2088.9,4.98791117]
[1742831338422,4.78697,2089.0,2088.7,25.8212]
[1742831338632,4.78697,2089.0,2088.8,4.63]
[1742831340261,4.78677,2089.1,2088.8,4.63]
[1742831340465,4.78677,2089.1,2088.8,9.93853]
[1742831340627,4.78677,2089.1,2088.8,5.50982688]
[1742831340828,9.57424,2089.0,2088.8,4.98862688]
[1742831341228,4.78679,2089.1,2088.8,4.98862688]
[1742831341442,4.7867,2089.2,2088.8,9.77592688]
[1742831341863,9.57339,2089.2,2088.8,9.77592688]
[1742831342066,4.78669,2089.2,2088.8,9.77592688]
[1742831343566,4.78689,2089.1,2088.8,9.77603688]
[1742831344502,4.78689,2089.1,2088.8,4.98862688]
[1742831344704,0.8316,2089.3,2088.7,25.3]
[1742831344705,4.78743,2088.8,2088.7,25.3]
[1742831344866,4.78743,2088.8,2088.7,29.93]
[1742831345068,6.300604,2088.8,2088.7,29.93]
[1742831345683,4.78743,2088.8,2088.7,29.93]
[1742831347302,4.78743,2088.8,2088.7,25.3]
[1742831347511,5.61673,2088.8,2088.7,29.931]
[1742831347667,5.61673,2088.8,2088.7,4.631]
[1742831348069,5.61673,2088.8,2088.1,25.304]
[1742831348070,4.78881,2088.2,2088.1,25.304]
[1742831348278,5.61801,2088.3,2088.1,29.935]
[1742831348965,5.61794,2088.3,2088.1,29.935]
[1742831349377,10.40672,2088.3,2088.1,29.935]
[1742831350129,5.61794,2088.3,2088.1,29.935]
[1742831350405,4.78881,2088.2,2088.1,29.935]
[1742831351980,4.78881,2088.2,2088.1,25.304]
[1742831352310,4.78881,2088.2,2087.5,0.5212]
[1742831352311,4.78987,2087.8,2087.5,0.5212]
[1742831352466,4.78997,2087.7,2087.5,0.5212]
[1742831352807,4.78997,2087.7,2087.6,4.631]
[1742831353011,4.79041,2087.5,2087.4,0.95795925]
[1742831353220,4.79037,2087.6,2087.3,25.8282]
[1742831353408,4.79041,2087.5,2087.4,4.631]
[1742831353900,4.79037,2087.6,2087.4,4.631]
[1742831354099,4.79028,2087.6,2087.4,4.631]
[1742831354409,4.78997,2087.7,2087.4,4.631]
[1742831354410,4.7895,2087.9,2087.5,4.7902]
[1742831355004,4.7895,2087.9,2087.4,9.42164]
[1742831355207,4.78981,2087.8,2087.4,9.42164]
[1742831355890,4.78981,2087.8,2087.4,14.21212]
[1742831356096,4.7895,2087.9,2087.5,4.79041]
[1742831356097,4.78951,2087.9,2087.5,4.79041]
[1742831356602,4.78977,2087.8,2087.4,14.21197]
[1742831357011,4.78977,2087.8,2087.4,9.42148]
[1742831357308,4.78977,2087.8,2087.4,14.21195]
[1742831358407,0.7875,2087.7,2087.4,3.0]
[1742831358610,5.57756,2087.7,2087.5,4.632]
[1742831359318,4.79018,2087.6,2087.5,4.632]
[1742831359482,9.58023,2087.7,2087.5,4.632]
[1742831359875,4.79018,2087.6,2087.5,4.632]
[1742831360412,4.79001,2087.7,2087.5,4.632]
[1742831361418,4.78975,2087.8,2087.5,4.632]
[1742831361705,4.78998,2087.7,2087.5,4.632]
[1742831361907,9.58011,2087.7,2087.5,4.632]
[1742831362113,4.78998,2087.7,2087.5,4.632]
[1742831362278,9.58011,2087.7,2087.5,4.632]
[1742831362613,4.78998,2087.7,2087.5,4.632]
[1742831363105,4.78929,2088.0,2087.6,0.5212]
[1742831363312,4.78929,2088.0,2087.6,5.31131]
[1742831363675,4.78959,2087.9,2087.6,0.5212]
[1742831364499,4.78994,2087.8,2087.5,4.632]
[1742831365706,5.57751,2087.9,2087.5,9.42232]
[1742831366206,4.79016,2087.7,2087.3,36.57175216]
[1742831366519,4.79016,2087.7,2087.6,4.633]
[1742831366886,5.59614,2087.4,2087.3,31.427]
[1742831367085,5.59614,2087.4,2087.3,29.94]
[1742831367513,4.79064,2087.4,2087.3,29.94]
[1742831372405,4.7903,2087.6,2087.3,29.94]
[1742831372740,9.58066,2087.6,2087.3,29.94]
[1742831373339,4.7903,2087.6,2087.3,29.94]
[1742831373641,4.79064,2087.4,2087.3,29.94]
[1742831375524,4.7905,2087.5,2087.3,29.94]
[1742831376058,4.79064,2087.4,2087.3,29.94]
[1742831376348,4.79064,2087.4,2087.3,25.307]
[1742831376655,4.79064,2087.4,2087.3,29.94]
[1742831377036,4.79064,2087.4,2087.3,4.633]
[1742831378218,4.79064,2087.4,2087.0,0.5212]
[1742831378219,4.79087,2087.3,2087.0,0.5212]
[1742831378423,4.79087,2087.3,2086.9,29.29145097]
[1742831378424,4.79141,2087.1,2086.9,28.321]
[1742831378624,4.79141,2087.1,2087.0,4.633]
[1742831379059,4.79156,2087.0,2086.9,25.321]
[1742831379228,4.79156,2087.0,2086.9,29.954]
[1742831380155,4.79141,2087.1,2086.9,29.954]
[1742831380321,4.79156,2087.0,2086.9,29.954]
[1742831381155,4.79156,2087.0,2086.9,30.13270192]
[1742831381589,7.047771,2087.0,2086.9,25.49970192]
[1742831381868,7.047771,2087.0,2086.9,30.13370192]
[1742831382169,5.61036,2087.0,2086.9,30.13370192]
[1742831383535,5.61036,2087.0,2086.9,25.49970192]
[1742831383734,5.61036,2087.0,2086.9,30.13370192]
[1742831384065,5.61036,2087.0,2086.9,0.17870192]
[1742831384267,11.70036,2087.0,2086.9,0.17870192]
[1742831384576,5.56932,2086.8,2086.7,4.634]
[1742831384867,4.79294,2086.4,2086.3,25.325]
[1742831385054,4.79294,2086.4,2086.3,29.959]
[1742831386567,4.79294,2086.4,2086.3,29.96]
[1742831387063,5.59794,2086.4,2086.3,25.325]
[1742831387367,4.79294,2086.4,2086.3,29.96]
[1742831387567,7.116262,2086.4,2086.3,25.325]
[1742831387766,4.7934,2086.2,2086.1,4.645]
[1742831388471,6.115,2086.2,2086.1,0.01]
[1742831390946,5.565,2086.2,2086.1,0.01]
[1742831391162,7.8409512,2086.2,2086.1,0.01]
[1742831396798,8.3909512,2086.2,2086.1,0.01]
[1742831397790,7.0693512,2086.2,2086.1,0.01]
[1742831398799,7.8737512,2086.2,2086.1,0.01]
[1742831399666,7.0693512,2086.2,2086.1,0.01]
[1742831402276,4.7934,2086.2,2086.1,0.01]
[1742831402477,4.79325,2086.3,2086.1,0.01]
[1742831402684,4.79311,2086.4,2086.1,0.01]
[1742831403273,4.79318,2086.3,2086.1,0.01]
[1742831403507,4.79299,2086.4,2086.1,0.01]
[1742831403728,4.79331,2086.3,2086.1,0.37373127]
[1742831403933,4.79296,2086.4,2086.1,0.01]
[1742831404119,9.58666,2086.3,2086.1,0.01]
[1742831404710,4.79329,2086.3,2086.1,0.01]
[1742831405304,4.79299,2086.4,2086.1,0.01]
[1742831405501,4.79299,2086.4,2086.2,0.5212]
[1742831405727,4.79317,2086.3,2086.2,0.5212]
[1742831406228,4.7934,2086.2,2086.1,0.01]
[1742831406433,4.7934,2086.2,2086.1,4.646]
[1742831406621,6.308911,2086.2,2086.1,4.646]
[1742831407590,7.669511,2086.2,2086.1,4.646]
[1742831408236,13.759511,2086.2,2086.1,4.646]
[1742831411847,13.759511,2086.2,2086.1,0.01]
[1742831412146,4.79478,2085.6,2085.5,25.328]
[1742831412305,4.79478,2085.6,2085.5,29.964]
[1742831413854,4.7946,2085.7,2085.5,29.964]
[1742831414056,9.58931,2085.7,2085.5,29.964]
[1742831414254,4.79478,2085.6,2085.5,29.964]
[1742831414980,9.58932,2085.7,2085.5,29.964]
[1742831415569,4.7946,2085.7,2085.5,29.964]
[1742831415873,9.58932,2085.7,2085.5,29.964]
[1742831416075,4.79478,2085.6,2085.5,25.328]
[1742831416276,4.79478,2085.6,2085.5,29.965]
[1742831416444,4.79478,2085.6,2085.5,25.328]
[1742831416628,4.79478,2085.6,2085.5,29.965]
[1742831417772,4.79478,2085.6,2085.5,25.328]
[1742831417974,6.3290442,2085.6,2085.5,29.964]
[1742831418475,4.79579,2085.2,2085.0,3.5212]
[1742831418632,4.79579,2085.2,2085.1,4.636]
[1742831418833,4.79547,2085.3,2085.1,4.636]
[1742831419368,9.59115,2085.3,2085.1,4.636]
[1742831419575,9.59111,2085.3,2085.1,4.636]
[1742831419737,9.59111,2085.3,2085.0,3.5212]
[1742831419935,9.59111,2085.3,2085.1,4.637]
[1742831420138,4.7957,2085.2,2085.1,4.637]
[1742831421277,4.7949,2085.6,2085.1,9.43283]
[1742831421481,4.7949,2085.6,2085.2,5.3168]
[1742831421649,4.79533,2085.4,2085.2,0.5212]
[1742831421854,4.79507,2085.5,2085.2,5.3169]
[1742831422358,4.79507,2085.5,2085.2,28.8662]
[1742831422556,4.79507,2085.5,2085.2,33.66181]
[1742831422955,4.79478,2085.6,2085.2,38.45734]
[1742831423457,4.79478,2085.6,2085.3,4.84341047]
[1742831423640,4.79433,2085.8,2085.4,5.31642]
[1742831423845,4.79457,2085.7,2085.5,4.637]
[1742831424287,4.79478,2085.6,2085.5,4.637]
[1742831424957,4.79478,2085.6,2085.2,25.8662]
[1742831424958,4.79547,2085.3,2085.2,25.8662]
[1742831425147,4.79547,2085.3,2085.2,25.345]
[1742831425352,4.79547,2085.3,2085.2,29.982]
[1742831425779,4.79532,2085.4,2085.2,29.982]
[1742831425955,9.59072,2085.4,2085.2,29.982]
[1742831426154,4.79532,2085.4,2085.2,29.982]
[1742831426644,4.79504,2085.5,2085.2,29.982]
[1742831426850,4.79504,2085.5,2085.3,0.5212]
[1742831428091,4.79524,2085.4,2085.3,0.5212]
[1742831428287,4.79504,2085.5,2085.3,0.5212]
[1742831429095,4.79508,2085.5,2085.3,0.5212]
[1742831429517,0.7586,2085.9,2085.3,0.5212]
[1742831429716,4.79434,2085.8,2085.6,0.5212]
[1742831429885,5.55903,2086.1,2085.7,4.637]
[1742831430215,4.79312,2086.4,2086.0,4.79382]
[1742831430384,4.79312,2086.4,2086.2,0.5212]
[1742831430707,4.79309,2086.4,2086.2,0.5212]
[1742831431483,4.79309,2086.4,2086.3,0.23108988]
[1742831432005,4.79294,2086.4,2086.3,0.23108988]
[1742831436107,4.79294,2086.4,2086.3,4.86708988]
[1742831436606,10.37322,2086.7,2086.3,4.86708988]
[1742831436810,4.79263,2086.6,2086.3,4.86708988]
[1742831437224,4.7928,2086.5,2086.3,4.86708988]
[1742831439213,4.7928,2086.5,2086.3,5.38828988]
[1742831440022,4.79252,2086.6,2086.3,5.38828988]
[1742831440218,4.79263,2086.6,2086.3,5.38828988]
[1742831440942,9.58533,2086.6,2086.3,5.38828988]
[1742831441107,4.79263,2086.6,2086.3,5.38828988]
[1742831441313,9.58521,2086.6,2086.3,5.38828988]
[1742831441508,4.79273,2086.5,2086.3,5.38828988]
[1742831441945,4.7926,2086.6,2086.3,5.38828988]
[1742831442338,4.79259,2086.6,2086.3,5.38828988]
[1742831443050,4.79231,2086.7,2086.3,10.22929648]
[1742831443214,4.79231,2086.7,2086.3,10.18136988]
[1742831444150,4.79249,2086.6,2086.3,5.38828988]
[1742831444721,4.79249,2086.6,2086.3,10.11479828]
[1742831446050,4.79249,2086.6,2086.3,5.32164828]
[1742831446854,4.79249,2086.6,2086.3,10.11481828]
[1742831449555,4.79249,2086.6,2086.3,35.44981828]
[1742831450962,5.58032,2086.9,2086.4,4.79292]
[1742831451170,4.7921,2086.8,2086.5,4.7927]
[1742831451372,4.7921,2086.8,2086.5,0.15101187]
[1742831452058,9.58429,2086.8,2086.5,0.15101187]
[1742831452259,4.79238,2086.7,2086.5,0.15101187]
[1742831452450,4.79248,2086.6,2086.3,30.4922]
[1742831452855,9.58514,2086.6,2086.3,30.4922]
[1742831453361,4.79248,2086.6,2086.3,30.4922]
[1742831453760,4.79274,2086.5,2086.3,25.8562]
[1742831454076,4.79274,2086.5,2086.4,4.634]
[1742831455072,4.79256,2086.6,2086.4,4.634]
[1742831455481,4.79226,2086.7,2086.4,4.634]
[1742831455840,4.79258,2086.6,2086.4,4.634]
[1742831456074,9.58527,2086.6,2086.5,0.11746354]
[1742831456442,4.79258,2086.6,2086.5,0.11746354]
[1742831458464,6.23027,2086.6,2086.5,0.11746354]
[1742831458664,7.02847,2086.6,2086.5,0.11746354]
[1742831459186,5.59078,2086.6,2086.5,0.11746354]
[1742831459485,4.79258,2086.6,2086.4,4.634]
[1742831460171,9.5847,2086.7,2086.4,4.634]
[1742831460341,4.79228,2086.7,2086.5,0.5212]
[1742831460965,4.79226,2086.7,2086.5,0.5212]
[1742831461372,4.79248,2086.6,2086.5,0.5212]
[1742831461672,4.79248,2086.6,2086.4,4.634]
[1742831462171,4.79233,2086.7,2086.4,4.634]
[1742831462684,4.79253,2086.6,2086.4,4.634]
[1742831463403,4.79231,2086.7,2086.4,4.634]
[1742831464003,4.79231,2086.7,2086.4,29.967]
[1742831464605,4.79231,2086.7,2086.4,34.75993]
[1742831464798,4.79231,2086.7,2086.5,0.5212]
[1742831465000,4.79206,2086.8,2086.5,0.5212]
[1742831465200,1.13093808,2086.9,2086.6,4.84037253]
[1742831465503,1.13093808,2086.9,2086.6,4.84030253]
[1742831465715,1.13093808,2086.9,2086.6,4.7924]
[1742831466089,5.92276808,2086.9,2086.6,4.7924]
[1742831467107,1.13093808,2086.9,2086.5,0.5212]
[1742831467314,4.79238,2086.7,2086.5,0.5212]
[1742831467482,4.79223,2086.8,2086.5,0.5212]
[1742831467681,5.92275808,2086.9,2086.5,5.31387]
[1742831467903,5.92275808,2086.9,2086.5,5.31375]
[1742831468211,10.71473808,2086.9,2086.5,5.31375]
[1742831468407,10.71473808,2086.9,2086.5,0.5212]
[1742831468408,1.13093808,2086.9,2086.5,0.5212]
[1742831468613,4.79232,2086.7,2086.4,29.967]
[1742831468907,4.79212,2086.8,2086.4,29.967]
[1742831469081,4.79212,2086.8,2086.4,34.75984]
[1742831469512,4.79212,2086.8,2086.5,0.04792142]
[1742831469717,5.92287808,2086.9,2086.6,0.5212]
[1742831470315,1.13093808,2086.9,2086.6,0.5212]
[1742831470520,1.13093808,2086.9,2086.8,5.31322]
[1742831470810,1.13093808,2086.9,2086.8,5.1542]
[1742831471220,1.13093808,2086.9,2086.8,5.52297104]
[1742831473523,1.13093808,2086.9,2086.8,5.00177104]
[1742831473929,4.79225,2086.7,2086.5,3.0]
[1742831474227,4.79225,2086.7,2086.6,4.633]
[1742831474409,4.79205,2086.8,2086.6,4.633]
[1742831475519,5.92276808,2086.9,2086.6,4.633]
[1742831475814,10.71472808,2086.9,2086.6,4.633]
[1742831476022,1.13093808,2086.9,2086.7,0.5212]
[1742831477282,1.13093808,2086.9,2086.7,3.5212]
[1742831477513,1.13093808,2086.9,2086.8,4.79202]
[1742831477986,1.13093808,2086.9,2086.7,8.31324]
[1742831479039,1.13093808,2086.9,2086.8,4.79202]
[1742831479206,1.13093808,2086.9,2086.8,5.31322]
[1742831479805,1.13093808,2086.9,2086.8,8.36113174]
[1742831479999,1.13093808,2086.9,2086.8,14.43322]
[1742831484092,0.8324,2087.7,2086.8,14.43322]
[1742831484292,0.8324,2087.9,2087.3,0.5212]
[1742831484598,4.78905,2088.1,2087.7,5.31115]
[1742831484934,4.78905,2088.1,2087.8,4.67989211]
[1742831485224,6.64,2088.6,2087.9,4.78934]
[1742831485225,4.78859,2088.3,2087.9,4.78934]
[1742831485423,5.58493,2088.4,2087.8,9.4216]
[1742831485424,4.78887,2088.2,2087.8,10.752]
[1742831485629,0.7869,2088.3,2087.8,10.752]
[1742831485826,0.7869,2088.1,2087.9,4.632]
[1742831486014,5.57602,2088.1,2087.9,4.632]
[1742831486198,4.78915,2088.1,2087.9,4.632]
[1742831486906,5.57549,2088.3,2087.9,5.1532]
[1742831487109,5.57549,2088.3,2087.9,9.94264]
[1742831487699,0.7869,2088.3,2087.9,5.1532]
[1742831487900,4.78901,2088.2,2087.9,4.632]
[1742831489128,4.78859,2088.3,2087.9,9.42143]
[1742831489331,4.78859,2088.3,2088.0,0.5212]
[1742831489834,9.57727,2088.3,2088.0,0.5212]
[1742831490036,4.78859,2088.3,2088.0,0.5212]
[1742831490415,9.57737,2088.3,2088.0,0.5212]
[1742831490735,4.78859,2088.3,2088.0,0.5212]
[1742831491214,4.78883,2088.2,2088.0,0.5212]
[1742831492015,4.78864,2088.3,2088.0,0.5212]
[1742831492939,4.78864,2088.3,2088.1,4.631]
[1742831493235,4.78858,2088.3,2088.2,4.631]
[1742831494437,4.78812,2088.5,2088.2,4.631]
[1742831494637,9.57639,2088.5,2088.2,4.631]
[1742831494812,4.78791,2088.6,2088.2,4.631]
[1742831495019,4.78812,2088.5,2088.3,0.5212]
[1742831495340,4.78806,2088.6,2088.3,0.5212]
[1742831495712,4.78813,2088.5,2088.3,0.5212]
[1742831497038,4.78794,2088.6,2088.3,0.5212]
[1742831497237,4.78794,2088.6,2088.3,3.5212]
[1742831497742,4.78813,2088.5,2088.3,3.5212]
[1742831499047,4.78835,2088.4,2088.2,3.0]
[1742831499342,4.78849,2088.4,2088.3,32.946]
[1742831499907,4.78835,2088.4,2088.3,32.946]
[1742831500355,4.78835,2088.4,2088.3,25.316]
[1742831500561,4.78835,2088.4,2088.3,29.945]
[1742831503162,5.61305,2088.4,2088.3,25.316]
[1742831503461,5.61305,2088.4,2088.3,29.945]
[1742831504264,4.78938,2088.0,2087.9,3.0]
[1742831504435,4.78938,2088.0,2087.9,7.629]
[1742831506175,4.7895,2087.9,2087.8,25.313]
[1742831506472,4.7895,2087.9,2087.8,29.942]
[1742831506875,4.78935,2088.0,2087.8,29.942]
[1742831507262,4.78907,2088.1,2087.8,29.942]
[1742831507875,9.57829,2088.1,2087.8,29.942]
[1742831508082,4.78907,2088.1,2087.8,29.942]
[1742831508255,4.78907,2088.1,2087.8,34.7317]
[1742831508452,4.78907,2088.1,2087.8,29.942]
[1742831508644,4.78882,2088.2,2088.0,0.5212]
[1742831510179,4.7886,2088.3,2088.0,5.31045]
[1742831510482,4.78842,2088.4,2088.0,5.3103]
[1742831511055,4.7886,2088.3,2088.0,5.3103]
[1742831512173,4.78842,2088.4,2088.0,5.3103]
[1742831513985,4.78866,2088.3,2088.1,25.313]
[1742831514144,4.78881,2088.2,2088.1,25.313]
[1742831514471,4.78868,2088.3,2088.1,29.942]
[1742831514674,9.57691,2088.4,2088.1,29.942]
[1742831515044,4.78859,2088.3,2088.1,29.942]
[1742831516076,4.78859,2088.3,2088.1,30.4632]
[1742831516375,5.33767,2088.7,2088.1,35.25216]
[1742831516376,4.78815,2088.5,2088.1,35.25216]
[1742831516671,4.7879,2088.6,2088.2,4.78873]
[1742831517075,5.3377,2088.7,2088.1,30.4632]
[1742831517377,5.3377,2088.7,2088.4,3.5212]
[1742831517581,5.3377,2088.7,2088.5,4.629]
[1742831518375,0.55,2088.7,2088.5,4.629]
[1742831518959,5.33768,2088.7,2088.5,4.629]
[1742831519487,10.12551,2088.7,2088.5,4.629]
[1742831519649,5.33768,2088.7,2088.5,4.629]
[1742831521576,10.12553,2088.7,2088.5,4.629]
[1742831521751,4.78789,2088.6,2088.5,4.629]
[1742831522449,5.33768,2088.7,2088.5,4.629]
[1742831522855,4.78789,2088.6,2088.5,4.629]
[1742831523383,5.33768,2088.7,2088.5,4.629]
[1742831524272,0.55,2088.7,2088.5,4.629]
[1742831524580,0.55,2088.7,2088.5,9.98619462]
[1742831524786,0.55,2088.7,2088.6,7.78789]
[1742831525084,0.55,2088.7,2088.6,14.42909]
[1742831525280,0.55,2088.7,2088.6,14.71916715]
[1742831525479,4.78667,2089.2,2088.8,3.0]
[1742831525682,4.78697,2089.0,2088.9,4.628]
[1742831525888,4.78743,2088.8,2088.7,3.0]
[1742831526053,4.78725,2088.9,2088.7,7.628]
[1742831526362,9.57462,2088.9,2088.7,7.628]
[1742831526885,9.57415,2089.0,2088.7,7.628]
[1742831527084,4.78725,2088.9,2088.7,7.628]
[1742831527586,4.78725,2088.9,2088.7,4.628]
[1742831527958,4.78658,2089.2,2088.7,9.93686]
[1742831528163,4.78678,2089.1,2088.7,5.1492]
[1742831528886,4.78707,2089.0,2088.7,5.1492]
[1742831530176,4.7868,2089.1,2088.7,5.1492]
[1742831531182,4.78712,2089.0,2088.7,5.1492]
[1742831531493,4.78729,2088.9,2088.7,4.628]
[1742831531657,4.78703,2089.0,2088.7,4.628]
[1742831532254,4.78723,2088.9,2088.7,4.628]
[1742831533172,9.57418,2089.0,2088.7,4.628]
[1742831533373,4.78703,2089.0,2088.7,4.628]
[1742831533769,5.61139,2089.3,2088.7,4.628]
[1742831533770,4.78675,2089.1,2088.8,0.5212]
[1742831533970,0.01,2089.4,2088.9,7.78718]
[1742831534174,4.7864,2089.3,2089.0,31.9472]
[1742831534484,4.7864,2089.3,2089.1,4.627]
[1742831535295,4.7866,2089.2,2089.0,31.426]
[1742831535468,4.78638,2089.3,2089.1,4.627]
[1742831536699,4.78638,2089.3,2089.1,4.98185601]
[1742831539013,4.78652,2089.2,2089.1,4.98185601]
[1742831540309,4.78652,2089.2,2089.0,31.9472]
[1742831540310,4.78675,2089.1,2089.0,34.426]
[1742831540599,4.78675,2089.1,2089.0,39.052]
[1742831541005,0.01,2089.4,2089.1,0.5212]
[1742831541202,0.01,2089.4,2089.1,9.6412]
[1742831541370,0.01,2089.4,2089.1,14.42775]
[1742831541576,4.79606,2089.4,2089.1,9.6412]
[1742831541776,0.01,2089.4,2089.1,9.6412]
[1742831543622,4.79619,2089.4,2089.1,9.6412]
[1742831543823,0.01,2089.4,2089.1,9.6412]
[1742831544147,0.01,2089.4,2089.1,14.42794]
[1742831545002,0.01,2089.4,2089.1,14.42786]
[1742831546525,0.01,2089.4,2089.2,4.83433672]
[1742831546723,0.01,2089.4,2089.3,4.78629]
[1742831547016,0.01,2089.4,2089.3,25.301]
[1742831547689,0.01,2089.4,2089.3,30.08729]
[1742831547904,0.01,2089.4,2089.3,25.301]
[1742831548216,0.01,2089.4,2089.3,33.60849]
[1742831549284,0.01,2089.4,2089.3,40.27849]
[1742831549518,0.01,2089.4,2089.3,44.39570312]
[1742831549724,0.55,2090.1,2089.9,5.30611]
[1742831550020,0.55,2090.1,2090.0,19.60088]
[1742831550693,0.55,2090.1,2090.0,19.9560327]
[1742831551421,0.55,2090.1,2090.0,14.6213527]
[1742831552015,0.55,2090.1,2090.0,19.4060327]
[1742831552210,0.55,2090.1,2090.0,14.6213527]
[1742831552882,0.55,2090.1,2090.0,19.4060327]
[1742831553714,0.55,2090.1,2090.0,14.6213527]
[1742831554382,0.55,2090.1,2090.0,19.4060327]
[1742831554786,0.55,2090.1,2090.0,20.37691578]
[1742831555116,0.55,2090.1,2090.0,15.07103578]
[1742831555612,0.55,2090.1,2090.0,15.59223578]
[1742831555810,0.55,2090.1,2090.0,20.37691578]
[1742831556320,0.55,2090.1,2090.0,23.37691578]
[1742831558505,0.25992285,2090.1,2090.0,23.37691578]
[1742831559509,0.25992285,2090.1,2090.0,48.66791578]
[1742831562519,0.25992285,2090.1,2090.0,49.21791578]
[1742831564917,5.54284,2090.9,2090.7,4.78286]
[1742831564918,0.7601,2090.9,2090.7,4.78286]
[1742831565123,0.7601,2090.9,2090.8,4.623]
[1742831565723,5.60217,2091.2,2090.8,9.40573]
[1742831565919,5.60217,2091.2,2090.9,25.285]
[1742831566527,0.8202,2091.2,2090.9,25.285]
[1742831566842,5.60225,2091.2,2090.9,25.63854659]
[1742831568105,10.38435,2091.2,2090.9,25.63854659]
[1742831568642,4.78226,2091.1,2090.9,25.63854659]
[1742831569740,5.60221,2091.2,2090.9,25.63854659]
[1742831569942,0.8202,2091.2,2090.9,30.42108659]
[1742831570260,5.60217,2091.2,2090.9,25.63854659]
[1742831570556,4.78182,2091.3,2090.9,30.42116659]
[1742831571336,0.01,2091.4,2091.2,4.78187]
[1742831571551,0.01,2091.4,2091.3,21.8327923]
[1742831571753,0.01,2091.4,2091.3,21.78498715]
[1742831572131,0.1235338,2092.2,2091.3,22.33498715]
[1742831572421,0.1235338,2092.2,2092.0,0.5212]
[1742831572761,4.9031838,2092.2,2092.1,29.904]
[1742831573462,4.9031838,2092.2,2092.1,25.281]
[1742831573774,4.9031838,2092.2,2092.1,29.905]
[1742831575026,4.9031838,2092.2,2092.1,25.281]
[1742831575233,7.20116718,2092.2,2092.1,29.902]
[1742831575839,7.20116718,2092.2,2092.1,29.904]
[1742831576958,4.78102,2091.6,2091.5,3.0]
[1742831577163,4.78102,2091.6,2091.5,28.276]
[1742831577850,0.7769,2091.8,2091.5,28.64249978]
[1742831577851,5.55755,2091.8,2091.5,28.64249978]
[1742831578049,4.7808,2091.7,2091.6,7.62]
[1742831578542,4.7808,2091.7,2091.6,4.62]
[1742831579057,5.55512,2091.6,2091.5,25.276]
[1742831579256,5.55512,2091.6,2091.5,29.896]
[1742831595382,5.55512,2091.6,2091.5,4.62]
[1742831599690,4.7808,2091.7,2091.5,4.62]
[1742831599895,10.87046,2091.9,2091.6,0.5212]
[1742831601891,4.78046,2091.9,2091.6,0.5212]
[1742831602092,9.56097,2091.9,2091.6,0.5212]